fUST/lending_fUST_20240103
["ID","MTS","AMOUNT","RATE_DAILY","PERIOD"]
[309987905,1704268241769,-614.41487017,0.00046027,21]
[309987906,1704268241778,-500.0,0.00046027,21]
[309987907,1704268241787,-490.78788435,0.00046027,21]
[309987908,1704268241796,-500.0,0.00046027,21]
[309987909,1704268241807,-527.64352753,0.00046027,21]
[309987910,1704268241817,-500.0,0.00046027,21]
[309987911,1704268241826,-500.0,0.00046027,21]
[309987912,1704268241836,-510.07694579,0.00046027,21]
[309987913,1704268241846,-500.0,0.00046027,21]
[309987914,1704268241855,-504.97252078,0.00046027,21]
[309987915,1704268241865,-372.06933517,0.00046027,21]
[309987916,1704268241874,-426.4553494,0.00046027,2]
[309987917,1704268241884,-500.0,0.00046027,21]
[309987918,1704268241893,-561.23756793,0.00046027,21]
[309987919,1704268241902,-500.0,0.00046027,21]
[309987920,1704268241911,-505.6664665,0.00046027,21]
[309987921,1704268241920,-500.0,0.00046027,21]
[309987922,1704268241930,-511.48149866,0.00046027,21]
[309987923,1704268241940,-500.0,0.00046027,21]
[309987924,1704268241950,-500.0,0.00046027,21]
[309987925,1704268241959,-500.0,0.00046027,21]
[309987926,1704268241968,-500.0,0.00046027,21]
[309987927,1704268241978,-500.0,0.00046027,21]
[309987928,1704268241988,-500.0,0.00046027,21]
[309987929,1704268241997,-500.0,0.00046027,21]
[309987930,1704268242006,-500.0,0.00046027,21]
[309987931,1704268242014,-500.0,0.00046027,21]
[309987932,1704268242024,-520.42800948,0.00046027,21]
[309987933,1704268242034,-500.0,0.00046027,21]
[309987934,1704268242044,-500.0,0.00046027,21]
[309987935,1704268242054,-500.0,0.00046027,21]
[309987936,1704268242063,-500.0,0.00046027,21]
[309987937,1704268242072,-500.0,0.00046027,21]
[309987938,1704268242082,-500.0,0.00046027,21]
[309987939,1704268242091,-500.0,0.00046027,21]
[309987940,1704268242100,-500.0,0.00046027,21]
[309987941,1704268242110,-500.0,0.00046027,21]
[309987942,1704268242119,-500.0,0.00046027,21]
[309987943,1704268242128,-500.0,0.00046027,21]
[309987944,1704268242138,-500.0,0.00046027,21]
[309987945,1704268242147,-500.0,0.00046027,21]
[309987946,1704268242157,-500.0,0.00046027,21]
[309987947,1704268242166,-500.0,0.00046027,21]
[309987948,1704268242175,-299.65980608,0.00046027,21]
[309987949,1704268242185,-500.0,0.00046027,21]
[309987950,1704268242194,-500.0,0.00046027,21]
[309987951,1704268242204,-500.0,0.00046027,21]
[309987952,1704268242214,-513.76812732,0.00046027,21]
[309987953,1704268242223,-500.0,0.00046027,21]
[309987954,1704268242232,-158.69428222,0.00046027,21]
[309987955,1704268242242,-500.0,0.00046027,21]
[309987956,1704268242251,-575.85897988,0.00046027,21]
[309987957,1704268242261,-1004.4274455,0.00046027,5]
[309987958,1704268242270,-399.35236744,0.00046027,21]
[309987959,1704268242280,-500.0,0.00046027,21]
[309987960,1704268242289,-511.99172838,0.00046027,21]
[309987961,1704268242299,-500.0,0.00046027,21]
[309987962,1704268242309,-503.40663225,0.00046027,21]
[309987963,1704268242319,-509.9687325,0.00046027,21]
[309987964,1704268242328,-627.01485944,0.00046027,21]
[309987965,1704268242338,-1459.43,0.00046027,21]
[309987966,1704268242347,-1459.43,0.00046027,21]
[309987967,1704268242356,-500.0,0.00046027,21]
[309987968,1704268242366,-1459.43,0.00046027,21]
[309987969,1704268242375,-500.0,0.00046027,21]
[309987970,1704268242448,-1459.43,0.00046027,21]
[309987971,1704268242459,-1459.43,0.00046027,21]
[309987972,1704268242468,-500.0,0.00046027,21]
[309987973,1704268242477,-547.66855616,0.00046027,21]
[309987974,1704268242487,-1459.43,0.00046027,21]
[309987975,1704268242498,-1459.43,0.00046027,21]
[309987976,1704268242510,-1459.43,0.00046027,21]
[309987977,1704268242519,-1459.43,0.00046027,21]
[309987978,1704268242529,-1459.43,0.00046027,21]
[309987979,1704268242539,-1459.43,0.00046027,21]
[309987980,1704268242548,-1459.43,0.00046027,21]
[309987981,1704268242558,-500.0,0.00046027,21]
[309987982,1704268242567,-1459.43,0.00046027,21]
[309987983,1704268242577,-500.0,0.00046027,21]
[309987984,1704268242586,-1459.43,0.00046027,21]
[309987985,1704268242595,-500.0,0.00046027,21]
[309987986,1704268242604,-1459.43,0.00046027,21]
[309987987,1704268242614,-560.62508015,0.00046027,21]
[309987988,1704268242624,-1459.43,0.00046027,21]
[309987989,1704268242633,-1459.43,0.00046027,21]
[309987990,1704268242642,-1459.43,0.00046027,21]
[309987991,1704268242652,-1459.43,0.00046027,21]
[309987992,1704268242662,-1459.43,0.00046027,21]
[309987993,1704268242671,-1459.43,0.00046027,21]
[309987994,1704268242682,-1459.43,0.00046027,21]
[309987995,1704268242692,-1459.43,0.00046027,21]
[309987996,1704268242702,-1459.53146237,0.00046027,21]
[309987997,1704268242711,-500.0,0.00046027,21]
[309987998,1704268242721,-503.9633012,0.00046027,21]
[309987999,1704268242730,-500.0,0.00046027,21]
[309988000,1704268242739,-500.0,0.00046027,21]
[309988001,1704268242749,-500.0,0.00046027,21]
[309988002,1704268242757,-500.0,0.00046027,21]
[309988003,1704268242766,-500.0,0.00046027,21]
[309988004,1704268242776,-500.0,0.00046027,21]
[309988005,1704268242785,-500.0,0.00046027,21]
[309988006,1704268242796,-500.0,0.00046027,21]
[309988007,1704268242806,-500.0,0.00046027,21]
[309988008,1704268242815,-500.0,0.00046027,21]
[309988009,1704268242824,-500.0,0.00046027,21]
[309988010,1704268242834,-500.0,0.00046027,21]
[309988011,1704268242844,-500.0,0.00046027,21]
[309988012,1704268242853,-500.0,0.00046027,21]
[309988013,1704268242862,-500.0,0.00046027,21]
[309988014,1704268242871,-525.76001195,0.00046027,21]
[309988015,1704268242881,-500.0,0.00046027,21]
[309988016,1704268242890,-500.0,0.00046027,21]
[309988017,1704268242899,-500.0,0.00046027,21]
[309988018,1704268242908,-500.0,0.00046027,21]
[309988019,1704268242917,-502.79131374,0.00046027,21]
[309988020,1704268242926,-500.0,0.00046027,21]
[309988021,1704268242935,-500.0,0.00046027,21]
[309988022,1704268242944,-500.0,0.00046027,21]
[309988023,1704268242953,-500.0,0.00046027,21]
[309988024,1704268242961,-500.0,0.00046027,21]
[309988025,1704268242971,-500.0,0.00046027,21]
[309988026,1704268242981,-500.0,0.00046027,21]
[309988027,1704268242990,-307.46590663,0.00046027,21]
[309988029,1704268243000,-500.0,0.00046027,21]
[309988030,1704268243009,-500.0,0.00046027,21]
[309988031,1704268243018,-500.0,0.00046027,21]
[309988032,1704268243028,-500.0,0.00046027,21]
[309988033,1704268243038,-500.0,0.00046027,21]
[309988034,1704268243048,-514.96156137,0.00046027,21]
[309988036,1704268243057,-242.81877011,0.00046027,21]
[309988037,1704268243068,-500.0,0.00046027,21]
[309988038,1704268243077,-505.76132998,0.00046027,21]
[309988039,1704268243086,-503.17811837,0.00046027,21]
[309988040,1704268243095,-500.0,0.00046027,21]
[309988041,1704268243105,-503.73431108,0.00046027,21]
[309988042,1704268243114,-500.0,0.00046027,21]
[309988043,1704268243124,-500.0,0.00046027,21]
[309988044,1704268243133,-500.0,0.00046027,21]
[309988045,1704268243142,-500.0,0.00046027,21]
[309988046,1704268243152,-500.0,0.00046027,21]
[309988047,1704268243161,-500.0,0.00046027,21]
[309988048,1704268243170,-500.0,0.00046027,21]
[309988050,1704268243180,-500.0,0.00046027,21]
[309988052,1704268243189,-500.0,0.00046027,21]
[309988053,1704268243199,-500.0,0.00046027,21]
[309988054,1704268243208,-500.0,0.00046027,21]
[309988055,1704268243218,-500.0,0.00046027,21]
[309988056,1704268243228,-567.36120981,0.00046027,21]
[309988057,1704268243238,-500.0,0.00046027,21]
[309988058,1704268243248,-500.0,0.00046027,21]
[309988059,1704268243263,-500.0,0.00046027,21]
[309988060,1704268243278,-500.0,0.00046027,21]
[309988061,1704268243295,-500.0,0.00046027,21]
[309988062,1704268243310,-436.2469158,0.00046027,21]
[309988063,1704268243321,-509.54985204,0.00046027,21]
[309988064,1704268243331,-617.95256951,0.00046027,21]
[309988065,1704268243345,-586.17006122,0.00046027,21]
[309988066,1704268243357,-500.0,0.00046027,21]
[309988067,1704268243370,-508.36622394,0.00046027,21]
[309988068,1704268243383,-502.16681369,0.00046027,21]
[309988069,1704268243396,-500.0,0.00046027,21]
[309988070,1704268243407,-500.0,0.00046027,21]
[309988071,1704268243420,-504.27656838,0.00046027,21]
[309988072,1704268243432,-500.0,0.00046027,21]
[309988073,1704268243442,-500.0,0.00046027,21]
[309988074,1704268243454,-500.0,0.00046027,21]
[309988075,1704268243467,-623.39503776,0.00046027,21]
[309988076,1704268243479,-502.7401604,0.00046027,21]
[309988077,1704268243491,-500.0,0.00046027,21]
[309988078,1704268243502,-500.0,0.00046027,21]
[309988079,1704268243515,-515.57726247,0.00046027,21]
[309988080,1704268243527,-500.91045435,0.00046027,21]
[309988082,1704268243540,-414.90548516,0.00046027,21]
[309988083,1704268243551,-500.0,0.00046027,21]
[309988084,1704268243561,-500.0,0.00046027,21]
[309988085,1704268243574,-500.0,0.00046027,21]
[309988086,1704268243587,-504.1187412,0.00046027,21]
[309988087,1704268243599,-501.74910936,0.00046027,21]
[309988088,1704268243611,-500.0,0.00046027,21]
[309988089,1704268243622,-500.0,0.00046027,21]
[309988090,1704268243632,-500.0,0.00046027,21]
[309988091,1704268243644,-283.92055398,0.00046027,21]
[309988092,1704268243656,-505.97893974,0.00046027,21]
[309988093,1704268243668,-500.0,0.00046027,21]
[309988094,1704268243680,-500.0,0.00046027,21]
[309988095,1704268243692,-500.0,0.00046027,21]
[309988096,1704268243705,-500.0,0.00046027,21]
[309988097,1704268243717,-511.49911477,0.00046027,21]
[309988098,1704268243731,-501.85473637,0.00046027,21]
[309988099,1704268243743,-500.0,0.00046027,21]
[309988100,1704268243753,-500.0,0.00046027,21]
[309988101,1704268243763,-500.0,0.00046027,21]
[309988102,1704268243773,-500.0,0.00046027,21]
[309988103,1704268243783,-500.0,0.00046027,21]
[309988104,1704268243794,-500.0,0.00046027,21]
[309988105,1704268243806,-500.0,0.00046027,21]
[309988106,1704268243818,-500.0,0.00046027,21]
[309988107,1704268243830,-500.0,0.00046027,21]
[309988108,1704268243842,-500.0,0.00046027,21]
[309988109,1704268243854,-500.0,0.00046027,21]
[309988110,1704268243864,-500.0,0.00046027,21]
[309988111,1704268243874,-500.0,0.00046027,21]
[309988112,1704268243884,-500.0,0.00046027,21]
[309988113,1704268243895,-500.0,0.00046027,21]
[309988114,1704268243905,-500.0,0.00046027,21]
[309988115,1704268243916,-503.82937842,0.00046027,21]
[309988116,1704268243927,-186.79050808,0.00046027,21]
[309988117,1704268243937,-500.0,0.00046027,21]
[309988118,1704268243948,-509.80281937,0.00046027,21]
[309988119,1704268243958,-500.0,0.00046027,21]
[309988120,1704268243968,-500.0,0.00046027,21]
[309988121,1704268243979,-500.0,0.00046027,21]
[309988122,1704268243989,-506.53362881,0.00046027,21]
[309988123,1704268243999,-500.0,0.00046027,21]
[309988124,1704268244011,-500.0,0.00046027,21]
[309988125,1704268244022,-500.0,0.00046027,21]
[309988126,1704268244032,-500.0,0.00046027,21]
[309988127,1704268244044,-500.0,0.00046027,21]
[309988128,1704268244055,-185.46628144,0.00046027,21]
[309988129,1704268244065,-500.0,0.00046027,21]
[309988130,1704268244076,-500.0,0.00046027,21]
[309988131,1704268244087,-519.04403224,0.00046027,21]
[309988132,1704268244098,-500.0,0.00046027,21]
[309988133,1704268244109,-507.58284474,0.00046027,21]
[309988134,1704268244120,-498.30237605,0.00046027,21]
[309988135,1704268244132,-500.0,0.00046027,21]
[309988136,1704268244143,-592.17288797,0.00046027,21]
[309988137,1704268244154,-500.0,0.00046027,21]
[309988138,1704268244164,-519.76794137,0.00046027,21]
[309988139,1704268244175,-500.0,0.00046027,21]
[309988140,1704268244186,-500.0,0.00046027,21]
[309988141,1704268244197,-500.0,0.00046027,21]
[309988142,1704268244208,-190.49051051,0.00046027,21]
[309988143,1704268244219,-227.23649424,0.00046027,21]
[309988144,1704268244314,-500.0,0.00046027,21]
[309988145,1704268244323,-500.0,0.00046027,21]
[309988146,1704268244333,-500.0,0.00046027,21]
[309988147,1704268244343,-562.16310313,0.00046027,21]
[309988148,1704268244353,-500.0,0.00046027,21]
[309988149,1704268244362,-504.95231116,0.00046027,21]
[309988150,1704268244372,-501.47969762,0.00046027,21]
[309988151,1704268244382,-500.0,0.00046027,21]
[309988152,1704268244391,-526.10055298,0.00046027,21]
[309988153,1704268244400,-507.228525,0.00046027,21]
[309988154,1704268244410,-500.0,0.00046027,21]
[309988155,1704268244419,-500.0,0.00046027,21]
[309988156,1704268244428,-500.0,0.00046027,21]
[309988157,1704268244438,-500.0,0.00046027,21]
[309988158,1704268244452,-500.0,0.00046027,21]
[309988159,1704268244462,-500.0,0.00046027,21]
[309988160,1704268244471,-534.50181747,0.00046027,21]
[309988161,1704268244481,-501.72375545,0.00046027,21]
[309988162,1704268244491,-505.65269624,0.00046027,21]
[309988163,1704268244501,-500.0,0.00046027,21]
[309988164,1704268244510,-500.0,0.00046027,21]
[309988165,1704268244521,-500.0,0.00046027,21]
[309988166,1704268244530,-500.0,0.00046027,21]
[309988167,1704268244540,-500.0,0.00046027,21]
[309988168,1704268244550,-500.0,0.00046027,21]
[309988169,1704268244560,-500.0,0.00046027,21]
[309988170,1704268244569,-500.0,0.00046027,21]
[309988171,1704268244578,-500.0,0.00046027,21]
[309988172,1704268244588,-500.0,0.00046027,21]
[309988173,1704268244598,-500.0,0.00046027,21]
[309988174,1704268244608,-500.0,0.00046027,21]
[309988175,1704268244618,-500.0,0.00046027,21]
[309988176,1704268244627,-500.0,0.00046027,21]
[309988177,1704268244637,-500.0,0.00046027,21]
[309988178,1704268244646,-500.0,0.00046027,21]
[309988179,1704268244655,-500.0,0.00046027,21]
[309988180,1704268244664,-500.0,0.00046027,21]
[309988181,1704268244673,-500.0,0.00046027,21]
[309988182,1704268244683,-500.0,0.00046027,21]
[309988183,1704268244692,-500.0,0.00046027,21]
[309988184,1704268244701,-581.39867503,0.00046027,21]
[309988185,1704268244711,-500.0,0.00046027,21]
[309988186,1704268244720,-501.35997694,0.00046027,21]
[309988187,1704268244729,-500.0,0.00046027,21]
[309988188,1704268244738,-514.54396184,0.00046027,21]
[309988189,1704268244748,-500.0,0.00046027,21]
[309988190,1704268244758,-500.0,0.00046027,21]
[309988191,1704268244767,-500.0,0.00046027,21]
[309988192,1704268244776,-500.0,0.00046027,21]
[309988193,1704268244785,-500.0,0.00046027,21]
[309988194,1704268244794,-500.0,0.00046027,21]
[309988195,1704268244803,-245.55435,0.00046027,21]
[309988196,1704268244812,-500.0,0.00046027,21]
[309988197,1704268244821,-421.81546562,0.00046027,21]
[309988198,1704268244830,-500.0,0.00046027,21]
[309988199,1704268244840,-500.0,0.00046027,21]
[309988200,1704268244849,-500.0,0.00046027,21]
[309988201,1704268244858,-500.0,0.00046027,21]
[309988202,1704268244867,-500.0,0.00046027,21]
[309988203,1704268244877,-500.0,0.00046027,21]
[309988204,1704268244886,-500.0,0.00046027,21]
[309988205,1704268244895,-500.0,0.00046027,21]
[309988206,1704268244906,-289.10612122,0.00046027,21]
[309988207,1704268244916,-515.06488603,0.00046027,21]
[309988208,1704268244927,-502.45577676,0.00046027,21]
[309988209,1704268244937,-505.62017965,0.00046027,21]
[309988210,1704268244947,-500.0,0.00046027,21]
[309988211,1704268244956,-500.0,0.00046027,21]
[309988212,1704268244965,-327.7529483,0.00046027,21]
[309988213,1704268244975,-500.0,0.00046027,21]
[309988214,1704268244985,-500.0,0.00046027,21]
[309988215,1704268244994,-500.0,0.00046027,21]
[309988216,1704268245003,-453.7391494,0.00046027,21]
[309988217,1704268245013,-194.83080164,0.00046027,21]
[309988218,1704268245023,-500.0,0.00046027,21]
[309988219,1704268245033,-517.43988549,0.00046027,21]
[309988220,1704268245044,-574.02226995,0.00046027,21]
[309988221,1704268245053,-500.0,0.00046027,21]
[309988222,1704268245062,-6572.31,0.00046027,21]
[309988223,1704268245071,-500.0,0.00046027,21]
[309988224,1704268245081,-6572.31,0.00046027,21]
[309988225,1704268245091,-500.0,0.00046027,21]
[309988226,1704268245101,-6572.31,0.00046027,21]
[309988227,1704268245110,-500.0,0.00046027,21]
[309988228,1704268245119,-6572.31,0.00046027,21]
[309988229,1704268245129,-500.0,0.00046027,21]
[309988230,1704268245138,-6342.58302307,0.00046027,21]
[309988231,1704268245245,-5725.92,0.00046017,3]
[309988232,1704268245254,-229.72697693,0.00046027,21]
[309988233,1704268245264,-6572.31,0.00046027,21]
[309988234,1704268245274,-500.0,0.00046027,21]
[309988235,1704268245283,-2312.57818785,0.00046027,21]
[309988236,1704268245296,-4259.73181215,0.00046027,21]
[309988237,1704268245307,-500.0,0.00046027,21]
[309988238,1704268245316,-352.0220451,0.00046027,21]
[309988239,1704268245326,-2942.67903096,0.00046027,21]
[309988240,1704268245337,-2321.52981137,0.00046027,21]
[309988241,1704268245373,-153.0,0.0004537,2]
[309988242,1704268245382,-1308.10115767,0.00046027,21]
[309988243,1704268245391,-500.0,0.00046027,21]
[309988244,1704268245401,-6572.31,0.00046027,21]
[309988245,1704268245410,-438.53457437,0.00046027,21]
[309988246,1704268245419,-6572.31,0.00046027,21]
[309988247,1704268245428,-6572.31,0.00046027,21]
[309988248,1704268245437,-6572.31,0.00046027,21]
[309988249,1704268245447,-6572.31,0.00046027,21]
[309988250,1704268245459,-6572.31,0.00046027,21]
[309988251,1704268245468,-3729.3281495,0.00046027,21]
[309988267,1704268249098,-1605.2271849,0.00046027,21]
[309988271,1704268466457,687.8126782,0.0002979,7]
[309988273,1704269181104,2812.1873218,0.0002979,2]
[309988274,1704269181717,-5000.0,0.0002979,2]
[309988275,1704269181790,-4483.96076225,0.0002979,2]
[309988276,1704269207545,-2751.50262818,0.0002979,2]
[309988277,1704269207817,-56.15311486,0.0002979,2]
[309988282,1704269291098,-4687.51985526,0.000295,30]
[309988283,1704269291203,-95.66367051,0.000295,30]
[309988291,1704269390680,-158.508221,0.00040416,120]
[309988375,1704269441059,-154.76784823,0.00039133,4]
[309988376,1704269441069,-1000.0,0.00039134,7]
[309988377,1704269441079,-154.76784823,0.00039135,5]
[309988378,1704269441090,-165.392657,0.00039137,2]
[309988379,1704269441099,-177.654638,0.00039499,2]
[309988380,1704269441108,-5683.72561974,0.00039999,4]
[309988483,1704270346101,-154.78330338,0.00037818,4]
[309988484,1704270346122,-1000.0,0.00037818,7]
[309988485,1704270346142,-626.27117964,0.00037819,4]
[309988486,1704270346164,-62.15758423,0.0003782,5]
[309988487,1704270355012,-2094.02724197,0.00047149,120]
[309988488,1704270355035,-30000.0,0.00047149,31]
[309988489,1704270355058,-81271.48176332,0.00047149,120]
[309988490,1704270355080,-5640.83743003,0.00047149,120]
[309988491,1704270355103,-5388.54257894,0.00047149,60]
[309988492,1704270355126,-199.999999,0.00047149,120]
[309988493,1704270355149,-1802.14682765,0.00047149,120]
[309988494,1704270355173,-215.13070146,0.00047149,120]
[309988495,1704270355196,-2647.0,0.00047149,60]
[309988496,1704270355220,-10894.08995116,0.00047149,31]
[309988497,1704270355244,-1500.0,0.00047149,120]
[309988498,1704270380702,280.0,0.000295,30]
[309988499,1704270381105,-5000.0,0.000295,30]
[309988500,1704270381269,-5000.0,0.000295,30]
[309988501,1704270381412,-1232.42497776,0.000295,30]
[309988502,1704270401282,-5000.0,0.000295,30]
[309988503,1704270401327,-5000.0,0.000295,30]
[309988504,1704270401492,-1512.42497776,0.000295,30]
[309988527,1704270421191,-5000.0,0.000295,30]
[309988528,1704270421426,-5000.0,0.000295,30]
[309988529,1704270421516,-1512.42497776,0.000295,30]
[309988530,1704270435094,-92.62571915,0.0003782,5]
[309988531,1704270435116,-165.392657,0.00037821,2]
[309988532,1704270435137,-177.654638,0.00038482,2]
[309988533,1704270435158,-250.0,0.00038541,2]
[309988534,1704270435180,-5574.50601785,0.00038696,4]
[309988599,1704270441314,-5000.0,0.000295,30]
[309988600,1704270441450,-5000.0,0.000295,30]
[309988601,1704270441570,-1512.42497776,0.000295,30]
[309988602,1704270454142,-154.77047825,0.00038696,4]
[309988603,1704270457145,-5000.0,0.000295,30]
[309988604,1704270457439,-5000.0,0.000295,30]
[309988605,1704270457536,-1512.42497776,0.000295,30]
[309988606,1704270475142,-5000.0,0.000295,30]
[309988607,1704270475341,-5000.0,0.000295,30]
[309988608,1704270475445,-1512.42497776,0.000295,30]
[309988609,1704270491342,-5000.0,0.000295,30]
[309988610,1704270491462,-5000.0,0.000295,30]
[309988611,1704270491634,-1512.42497776,0.000295,30]
[309988612,1704270509177,-5000.0,0.000295,30]
[309988613,1704270509366,-5000.0,0.000295,30]
[309988614,1704270509479,-1512.42497776,0.000295,30]
[309988615,1704270533184,-5000.0,0.000295,30]
[309988616,1704270533416,-5000.0,0.000295,30]
[309988617,1704270533535,-1512.42497776,0.000295,30]
[309988618,1704270549115,-5000.0,0.000295,30]
[309988619,1704270549204,-5000.0,0.000295,30]
[309988620,1704270549401,-1512.42497776,0.000295,30]
[309988621,1704270565113,-11490.63246758,0.000295,30]
[309988622,1704270565207,-21.79251018,0.000295,30]
[309988623,1704270587143,-5000.0,0.000295,30]
[309988624,1704270587380,-895.8970129,0.000295,30]
[309988635,1704270632085,-1128.849,0.000388,45]
[309988636,1704270632097,-48299.42191411,0.000388,45]
[309988637,1704270632106,-154.78330338,0.00038996,4]
[309988638,1704270632115,-154.78330338,0.00038997,5]
[309988639,1704270632124,-1000.0,0.00038998,7]
[309988640,1704270632133,-154.76784823,0.00039,4]
[309988641,1704270632144,-6918.04318865,0.00039257,4]
[309988660,1704270638294,-253.03416128,0.00039257,4]
[309988661,1704270638307,-18.99386745,0.00039257,4]
[309988662,1704270638318,-4174.9541015,0.00039258,2]
[309988663,1704270638328,-200.0,0.00039362,2]
[309988664,1704270638338,-158.508221,0.00039379,120]
[309988665,1704270638349,-207.769501,0.00039386,2]
[309988666,1704270638358,-200.0,0.00039973,2]
[309988667,1704270638369,-1514.64301972,0.00039999,4]
[309988677,1704270644540,-5.25484515,0.00039999,4]
[309988684,1704271674918,-980.0,0.00034,7]
[309988685,1704271675163,-20.0,0.00034,7]
[309988686,1704271692132,-154.79876161,0.00033404,5]
[309988687,1704271692161,-1387.31691402,0.00033404,4]
[309988688,1704271692223,-186.27051009,0.00033404,4]
[309988689,1704271705244,-593.93540289,0.00033404,4]
[309988690,1704271705514,-12.12113067,0.00033404,4]
[309988691,1704271711945,-2733.56356743,0.00034,4]
[309988692,1704271712139,-55.78701158,0.00034,4]
[309988693,1704271720058,-5000.0,0.00034,4]
[309988694,1704271720331,-2373.87091168,0.00034,4]
[309988695,1704271727974,-2733.56356743,0.00034,4]
[309988696,1704271728242,-55.78701158,0.00034,4]
[309988697,1704271732858,-161.599958,0.00033405,2]
[309988698,1704271732888,-143.76800084,0.00034,2]
[309988699,1704271733012,-6.23199916,0.00034,2]
[309988700,1704271741618,-962.64253644,0.00034,4]
[309988701,1704271741889,-19.64576605,0.00034,4]
[309988702,1704271745090,-7190.07121738,0.00034433,4]
[309988703,1704271745111,-3004.70007724,0.00034433,4]
[309988704,1704271745132,-8865.1,0.00034434,3]
[309988705,1704271745152,-7387.58,0.00034434,3]
[309988706,1704271745172,-6156.32,0.00034434,3]
[309988707,1704271745193,-60673.5159509,0.00034444,14]
[309988708,1704271745214,-166.92826594,0.00034899,7]
[309988709,1704271745235,-8349.32645854,0.00034999,4]
[309988720,1704271745761,-2417.96497289,0.00034,4]
[309988721,1704271745920,-49.34622394,0.00034,4]
[309988722,1704271749099,-191.547275,0.00034999,4]
[309988723,1704271756587,-154.79876161,0.00034,14]
[309988724,1704271756623,-2240.35882822,0.00034,2]
[309988725,1704271756778,-203.67952875,0.00034,2]
[309988726,1704271759241,685.72464199,0.00034,4]
[309988727,1704271765889,-902.73318918,0.00034,4]
[309988728,1704271766162,-18.42312631,0.00034,4]
[309988729,1704271767415,154.79876161,0.00034,4]
[309988730,1704271768875,-154.79876161,0.00034,2]
[309988731,1704271768914,-4845.20123839,0.00034,2]
[309988732,1704271769089,-2156.1136267,0.00034,2]
[309988733,1704271769338,1419.29884884,0.00034,5]
[309988734,1704271770041,1424.58752446,0.00034,2]
[309988735,1704271770074,1019.45083251,0.00034,2]
[309988740,1704271773975,-154.79876161,0.00034,14]
[309988741,1704271774004,-547.50288458,0.00034,4]
[309988742,1704271774185,-169.13144827,0.00034,4]
[309988743,1704271774476,300.0,0.00034,4]
[309988744,1704271782815,-154.79876161,0.00034,2]
[309988745,1704271782845,-537.7145539,0.00034,2]
[309988746,1704271783123,-14.13292481,0.00034,2]
[309988747,1704271785820,-921.15631549,0.00034,4]
[309988748,1704271785854,-134.21248303,0.00034,4]
[309988749,1704271785994,-21.53813874,0.00034,4]
[309988750,1704271787547,716.63433285,0.00034,4]
[309988751,1704271788814,-294.0,0.00034,4]
[309988752,1704271788989,-6.0,0.00034,4]
[309988753,1704271790200,-2329.10002448,0.00034,2]
[309988754,1704271790464,-47.53265356,0.00034,2]
[309988755,1704271790885,154.79876161,0.00034,14]
[309988756,1704271803689,-902.73318918,0.00034,4]
[309988757,1704271803821,-18.42312631,0.00034,4]
[309988758,1704271803851,-716.63433285,0.00034,4]
[309988759,1704271806620,167.67573002,0.00034,4]
[309988760,1704271806651,132.32426998,0.00034,4]
[309988761,1704271821963,-702.30164619,0.00034,4]
[309988762,1704271822171,-14.33268666,0.00034,4]
[309988763,1704271825719,-902.73318918,0.00034,4]
[309988764,1704271825906,-18.42312631,0.00034,4]
[309988765,1704271826485,300.0,0.00034,4]
[309988792,1704271832232,-154.79876161,0.00034,2]
[309988794,1704271832241,-158.508221,0.00035616,120]